[Event "Titled Tuesday Blitz July 25 Early 2023"]
[White "arturdailima"]
[Black "Padmini, Rout"]
[BlackFideId "5029295"]
[WhiteElo "2297"]
[BlackElo "2479"]
[Result "1-0"]
[Round "3"]
[TimeControl "180+2"]
[Date "2023.07.25"]
[WhiteClock "0:00:19"]
[BlackClock "0:00:04"]
[Board "209"]

1. e4 {[%clk 0:03:00]}  d5 {[%clk 0:02:58]} 2. exd5 {[%clk 0:03:00]}  Nf6 {[%clk 0:02:58]} 3. d4 {[%clk 0:03:00]}  Nxd5 {[%clk 0:02:56]} 4. c4 {[%clk 0:02:59]}  Nf6 {[%clk 0:02:55]} 5. Nc3 {[%clk 0:02:55]}  c6 {[%clk 0:02:55]} 6. h3 {[%clk 0:02:55]}  g6 {[%clk 0:02:53]} 7. Nf3 {[%clk 0:02:53]}  Bg7 {[%clk 0:02:53]} 8. Be2 {[%clk 0:02:52]}  O-O {[%clk 0:02:54]} 9. O-O {[%clk 0:02:53]}  Nbd7 {[%clk 0:02:44]} 10. Bf4 {[%clk 0:02:52]}  Qb6 {[%clk 0:02:12]} 11. Qb3 {[%clk 0:02:50]}  Nh5 {[%clk 0:02:00]} 12. Be3 {[%clk 0:02:44]}  Qc7 {[%clk 0:01:59]} 13. Rfe1 {[%clk 0:02:40]}  Nf4 {[%clk 0:01:42]} 14. Bf1 {[%clk 0:02:39]}  e5 {[%clk 0:01:27]} 15. dxe5 {[%clk 0:02:17]}  Nxe5 {[%clk 0:01:26]} 16. Nxe5 {[%clk 0:02:14]}  Bxe5 {[%clk 0:01:27]} 17. Bc5 {[%clk 0:02:11]}  Rd8 {[%clk 0:01:22]} 18. Rad1 {[%clk 0:02:07]}  Bf5 {[%clk 0:01:20]} 19. Be3 {[%clk 0:01:56]}  Ne6 {[%clk 0:00:40]} 20. Rxd8+ {[%clk 0:01:37]}  Rxd8 {[%clk 0:00:38]} 21. Bxa7 {[%clk 0:01:35]}  Bd4 {[%clk 0:00:29]} 22. Bxd4 {[%clk 0:01:26]}  Nxd4 {[%clk 0:00:30]} 23. Qb4 {[%clk 0:01:10]}  Bxh3 {[%clk 0:00:27]} 24. Qe7 {[%clk 0:00:58]}  Rd7 {[%clk 0:00:18]} 25. Qe8+ {[%clk 0:00:57]}  Kg7 {[%clk 0:00:19]} 26. Qe5+ {[%clk 0:00:58]}  Qxe5 {[%clk 0:00:19]} 27. Rxe5 {[%clk 0:00:59]}  Be6 {[%clk 0:00:16]} 28. Na4 {[%clk 0:00:55]}  Bf5 {[%clk 0:00:11]} 29. Nc5 {[%clk 0:00:54]}  Rc7 {[%clk 0:00:11]} 30. Bd3 {[%clk 0:00:41]}  b6 {[%clk 0:00:09]} 31. Bxf5 {[%clk 0:00:40]}  Nxf5 {[%clk 0:00:08]} 32. Ne4 {[%clk 0:00:31]}  Nd4 {[%clk 0:00:07]} 33. Re8 {[%clk 0:00:27]}  Ra7 {[%clk 0:00:06]} 34. a3 {[%clk 0:00:26]}  b5 {[%clk 0:00:06]} 35. cxb5 {[%clk 0:00:20]}  cxb5 {[%clk 0:00:07]} 36. Rd8 {[%clk 0:00:21]}  Ne6 {[%clk 0:00:06]} 37. Rb8 {[%clk 0:00:20]}  Nc7 {[%clk 0:00:05]} 38. Nd6 {[%clk 0:00:19]}  Ra6 {[%clk 0:00:04]} 39. Nxb5 {[%clk 0:00:18]}  Nxb5 {[%clk 0:00:04]} 40. Rxb5 {[%clk 0:00:19]}  Rc6 {[%clk 0:00:04]} 41. g3 {[%clk 0:00:18]}  h5 {[%clk 0:00:04]} 42. Kg2 {[%clk 0:00:19]}  Kh6 {[%clk 0:00:04]} 43. a4 {[%clk 0:00:19]}  g5 {[%clk 0:00:04]} 44. a5 {[%clk 0:00:19]} 1-0


[Site "https://www.chess.com"]

[Event "Titled Tuesday Blitz July 25 Early 2023"]
[White "Cooper, Aaron"]
[Black "Luukkonen, Tommi"]
[WhiteFideId "2634945"]
[BlackFideId "501808"]
[WhiteElo "2292"]
[BlackElo "2476"]
[Result "1-0"]
[Round "3"]
[TimeControl "180+2"]
[Date "2023.07.25"]
[WhiteClock "0:01:10"]
[BlackClock "0:00:55"]
[Board "210"]

1. e4 {[%clk 0:03:00]}  g6 {[%clk 0:02:57]} 2. d4 {[%clk 0:02:59]}  Bg7 {[%clk 0:02:58]} 3. Nc3 {[%clk 0:02:58]}  d6 {[%clk 0:02:58]} 4. Nf3 {[%clk 0:02:57]}  a6 {[%clk 0:02:58]} 5. a4 {[%clk 0:02:56]}  Nc6 {[%clk 0:02:57]} 6. Be3 {[%clk 0:02:47]}  Nf6 {[%clk 0:02:55]} 7. h3 {[%clk 0:02:45]}  O-O {[%clk 0:02:54]} 8. Be2 {[%clk 0:02:43]}  b6 {[%clk 0:02:49]} 9. Qd2 {[%clk 0:02:38]}  Bb7 {[%clk 0:02:47]} 10. O-O {[%clk 0:02:37]}  e5 {[%clk 0:02:36]} 11. d5 {[%clk 0:02:33]}  Ne7 {[%clk 0:02:33]} 12. Bh6 {[%clk 0:02:30]}  Nh5 {[%clk 0:02:30]} 13. Bxg7 {[%clk 0:02:28]}  Kxg7 {[%clk 0:02:30]} 14. g3 {[%clk 0:02:22]}  Bc8 {[%clk 0:02:29]} 15. Kh2 {[%clk 0:02:21]}  h6 {[%clk 0:02:29]} 16. Nh4 {[%clk 0:02:07]}  Nf6 {[%clk 0:02:29]} 17. Bd3 {[%clk 0:01:57]}  g5 {[%clk 0:01:58]} 18. Nf5+ {[%clk 0:01:56]}  Nxf5 {[%clk 0:01:39]} 19. exf5 {[%clk 0:01:56]}  Re8 {[%clk 0:01:39]} 20. Rae1 {[%clk 0:01:46]}  Bd7 {[%clk 0:01:37]} 21. f4 {[%clk 0:01:35]}  exf4 {[%clk 0:01:36]} 22. gxf4 {[%clk 0:01:35]}  Nh5 {[%clk 0:01:36]} 23. fxg5 {[%clk 0:01:30]}  hxg5 {[%clk 0:01:31]} 24. f6+ {[%clk 0:01:27]}  Kh6 {[%clk 0:01:29]} 25. Ne4 {[%clk 0:01:13]}  Rxe4 {[%clk 0:00:55]} 26. Rxe4 {[%clk 0:01:10]} 1-0


[Site "https://www.chess.com"]

[Event "Titled Tuesday Blitz July 25 Early 2023"]
[White "Romero Arzuaga, Yudel"]
[Black "Ronka, Erik"]
[WhiteFideId "3521010"]
[BlackFideId "505080"]
[WhiteElo "2287"]
[BlackElo "2476"]
[Result "0-1"]
[Round "3"]
[TimeControl "180+2"]
[Date "2023.07.25"]
[WhiteClock "0:01:04"]
[BlackClock "0:01:39"]
[Board "211"]

1. d4 {[%clk 0:03:00]}  d5 {[%clk 0:02:55]} 2. c4 {[%clk 0:02:59]}  c6 {[%clk 0:02:56]} 3. cxd5 {[%clk 0:02:58]}  cxd5 {[%clk 0:02:56]} 4. Nc3 {[%clk 0:02:59]}  Nf6 {[%clk 0:02:56]} 5. Bf4 {[%clk 0:02:59]}  Nc6 {[%clk 0:02:56]} 6. e3 {[%clk 0:02:59]}  Bf5 {[%clk 0:02:56]} 7. Qb3 {[%clk 0:02:55]}  Na5 {[%clk 0:02:57]} 8. Bb5+ {[%clk 0:02:49]}  Bd7 {[%clk 0:02:57]} 9. Qa4 {[%clk 0:02:44]}  Nc6 {[%clk 0:02:54]} 10. Nf3 {[%clk 0:02:41]}  a6 {[%clk 0:02:55]} 11. Bd3 {[%clk 0:02:35]}  Ne5 {[%clk 0:02:53]} 12. Qd1 {[%clk 0:02:35]}  Nxd3+ {[%clk 0:02:48]} 13. Qxd3 {[%clk 0:02:35]}  e6 {[%clk 0:02:49]} 14. O-O {[%clk 0:02:34]}  Be7 {[%clk 0:02:49]} 15. Rac1 {[%clk 0:02:32]}  O-O {[%clk 0:02:50]} 16. Ne5 {[%clk 0:02:32]}  Rc8 {[%clk 0:02:48]} 17. Bg5 {[%clk 0:02:30]}  b5 {[%clk 0:02:20]} 18. Bxf6 {[%clk 0:02:17]}  Bxf6 {[%clk 0:02:19]} 19. Nxd7 {[%clk 0:02:14]}  Qxd7 {[%clk 0:02:18]} 20. f4 {[%clk 0:02:14]}  Rc7 {[%clk 0:02:13]} 21. a3 {[%clk 0:02:12]}  Rfc8 {[%clk 0:02:11]} 22. Rc2 {[%clk 0:02:09]}  g6 {[%clk 0:01:57]} 23. Rfc1 {[%clk 0:02:07]}  Be7 {[%clk 0:01:57]} 24. Nd1 {[%clk 0:01:59]}  Rc4 {[%clk 0:01:56]} 25. Rxc4 {[%clk 0:01:50]}  bxc4 {[%clk 0:01:56]} 26. Qc2 {[%clk 0:01:44]}  Rb8 {[%clk 0:01:56]} 27. Nf2 {[%clk 0:01:39]}  Rb3 {[%clk 0:01:55]} 28. Ng4 {[%clk 0:01:36]}  Qb5 {[%clk 0:01:53]} 29. Qf2 {[%clk 0:01:22]}  Rxb2 {[%clk 0:01:52]} 30. Qf3 {[%clk 0:01:17]}  Rb1 {[%clk 0:01:49]} 31. Rxb1 {[%clk 0:01:16]}  Qxb1+ {[%clk 0:01:50]} 32. Kf2 {[%clk 0:01:16]}  c3 {[%clk 0:01:51]} 33. Ne5 {[%clk 0:01:13]}  c2 {[%clk 0:01:49]} 34. Nd3 {[%clk 0:01:11]}  c1=Q {[%clk 0:01:41]} 35. Nxc1 {[%clk 0:01:10]}  Qxc1 {[%clk 0:01:42]} 36. Qe2 {[%clk 0:01:10]}  Qxa3 {[%clk 0:01:42]} 37. Qc2 {[%clk 0:01:08]}  a5 {[%clk 0:01:39]} 38. Kg3 {[%clk 0:01:04]} 0-1


[Site "https://www.chess.com"]

[Event "Titled Tuesday Blitz July 25 Early 2023"]
[White "Heinemann, Josefine"]
[Black "Joshi, Pankaj"]
[WhiteFideId "12900460"]
[BlackFideId "5006210"]
[WhiteElo "2466"]
[BlackElo "2258"]
[Result "1-0"]
[Round "3"]
[TimeControl "180+2"]
[Date "2023.07.25"]
[WhiteClock "0:00:32"]
[BlackClock "0:00:06"]
[Board "215"]

1. e4 {[%clk 0:03:00]}  c5 {[%clk 0:02:59]} 2. c3 {[%clk 0:03:00]}  Nf6 {[%clk 0:02:58]} 3. e5 {[%clk 0:02:59]}  Nd5 {[%clk 0:02:59]} 4. Nf3 {[%clk 0:02:59]}  Nc6 {[%clk 0:02:58]} 5. Bc4 {[%clk 0:02:59]}  Nb6 {[%clk 0:02:58]} 6. Bb3 {[%clk 0:02:59]}  e6 {[%clk 0:02:53]} 7. d4 {[%clk 0:02:58]}  cxd4 {[%clk 0:02:54]} 8. cxd4 {[%clk 0:02:58]}  d6 {[%clk 0:02:55]} 9. O-O {[%clk 0:02:51]}  dxe5 {[%clk 0:02:51]} 10. dxe5 {[%clk 0:02:52]}  Bc5 {[%clk 0:02:44]} 11. Qe2 {[%clk 0:02:50]}  h6 {[%clk 0:02:40]} 12. Rd1 {[%clk 0:02:47]}  Qc7 {[%clk 0:02:32]} 13. Nc3 {[%clk 0:02:47]}  O-O {[%clk 0:02:29]} 14. Bc2 {[%clk 0:02:46]}  Nd7 {[%clk 0:01:35]} 15. Qe4 {[%clk 0:02:35]}  f5 {[%clk 0:01:35]} 16. exf6 {[%clk 0:02:33]}  Nxf6 {[%clk 0:01:35]} 17. Qg6 {[%clk 0:02:19]}  Ne7 {[%clk 0:01:26]} 18. Qd3 {[%clk 0:02:02]}  Nf5 {[%clk 0:01:13]} 19. Bd2 {[%clk 0:01:47]}  Qb6 {[%clk 0:01:12]} 20. Na4 {[%clk 0:01:32]}  Qc7 {[%clk 0:00:43]} 21. Nxc5 {[%clk 0:01:32]}  Qxc5 {[%clk 0:00:44]} 22. Bc3 {[%clk 0:01:31]}  Ng4 {[%clk 0:00:41]} 23. Qe2 {[%clk 0:01:25]}  b6 {[%clk 0:00:37]} 24. Rac1 {[%clk 0:01:23]}  a5 {[%clk 0:00:32]} 25. Bb3 {[%clk 0:01:16]}  Ba6 {[%clk 0:00:25]} 26. Qxe6+ {[%clk 0:01:07]}  Kh7 {[%clk 0:00:25]} 27. Be1 {[%clk 0:00:53]}  Qe7 {[%clk 0:00:13]} 28. Qxe7 {[%clk 0:00:48]}  Nxe7 {[%clk 0:00:13]} 29. Rc7 {[%clk 0:00:46]}  Nf5 {[%clk 0:00:12]} 30. Bc2 {[%clk 0:00:45]}  Kh8 {[%clk 0:00:10]} 31. Bc3 {[%clk 0:00:42]}  Be2 {[%clk 0:00:10]} 32. Bxf5 {[%clk 0:00:34]}  Rxf5 {[%clk 0:00:06]} 33. Bxg7+ {[%clk 0:00:33]}  Kg8 {[%clk 0:00:06]} 34. Rdd7 {[%clk 0:00:33]}  Re8 {[%clk 0:00:05]} 35. Bc3 {[%clk 0:00:32]}  Bb5 {[%clk 0:00:05]} 36. Rg7+ {[%clk 0:00:30]}  Kh8 {[%clk 0:00:05]} 37. Rh7+ {[%clk 0:00:31]}  Kg8 {[%clk 0:00:05]} 38. Rcg7+ {[%clk 0:00:31]}  Kf8 {[%clk 0:00:06]} 39. Rh8# {[%clk 0:00:32]} 1-0


[Site "https://www.chess.com"]

[Event "Titled Tuesday Blitz July 25 Early 2023"]
[White "Kohler, Aran"]
[Black "Szyszylo, Rafal"]
[WhiteFideId "1002856"]
[BlackFideId "1109626"]
[WhiteElo "2249"]
[BlackElo "2448"]
[Result "1/2-1/2"]
[Round "3"]
[TimeControl "180+2"]
[Date "2023.07.25"]
[WhiteClock "0:00:28"]
[BlackClock "0:00:14"]
[Board "218"]

1. d4 {[%clk 0:03:00]}  g6 {[%clk 0:02:58]} 2. c3 {[%clk 0:03:01]}  d6 {[%clk 0:02:57]} 3. Bg5 {[%clk 0:03:01]}  Bg7 {[%clk 0:02:48]} 4. Nd2 {[%clk 0:03:01]}  Nf6 {[%clk 0:02:40]} 5. e3 {[%clk 0:03:00]}  O-O {[%clk 0:02:41]} 6. Bd3 {[%clk 0:02:58]}  Nbd7 {[%clk 0:02:40]} 7. Ngf3 {[%clk 0:02:44]}  e5 {[%clk 0:02:41]} 8. dxe5 {[%clk 0:02:42]}  dxe5 {[%clk 0:02:41]} 9. Ne4 {[%clk 0:02:38]}  h6 {[%clk 0:02:39]} 10. Nxf6+ {[%clk 0:02:33]}  Nxf6 {[%clk 0:02:39]} 11. Bxf6 {[%clk 0:02:27]}  Qxf6 {[%clk 0:02:37]} 12. e4 {[%clk 0:02:24]}  Be6 {[%clk 0:02:33]} 13. O-O {[%clk 0:02:20]}  Rfd8 {[%clk 0:02:22]} 14. Qc2 {[%clk 0:02:19]}  Bg4 {[%clk 0:02:14]} 15. Be2 {[%clk 0:02:18]}  Rd6 {[%clk 0:02:06]} 16. Rad1 {[%clk 0:02:18]}  Rad8 {[%clk 0:02:06]} 17. Rxd6 {[%clk 0:02:18]}  Rxd6 {[%clk 0:02:05]} 18. Rd1 {[%clk 0:02:17]}  Qd8 {[%clk 0:01:57]} 19. h3 {[%clk 0:02:09]}  Be6 {[%clk 0:01:56]} 20. Rxd6 {[%clk 0:02:08]}  Qxd6 {[%clk 0:01:51]} 21. b3 {[%clk 0:02:08]}  Bf8 {[%clk 0:01:38]} 22. Nd2 {[%clk 0:02:05]}  Qc5 {[%clk 0:01:34]} 23. Bc4 {[%clk 0:02:04]}  Bd7 {[%clk 0:01:27]} 24. b4 {[%clk 0:02:00]}  Qd6 {[%clk 0:01:23]} 25. a3 {[%clk 0:01:59]}  Kg7 {[%clk 0:00:56]} 26. Bd5 {[%clk 0:01:58]}  c6 {[%clk 0:00:50]} 27. Bb3 {[%clk 0:01:51]}  Be7 {[%clk 0:00:49]} 28. Nc4 {[%clk 0:01:48]}  Qc7 {[%clk 0:00:49]} 29. Ne3 {[%clk 0:01:46]}  Bg5 {[%clk 0:00:45]} 30. Qd3 {[%clk 0:01:46]}  b5 {[%clk 0:00:41]} 31. g3 {[%clk 0:01:42]}  h5 {[%clk 0:00:41]} 32. h4 {[%clk 0:01:42]}  Be7 {[%clk 0:00:37]} 33. c4 {[%clk 0:01:37]}  a6 {[%clk 0:00:30]} 34. c5 {[%clk 0:01:36]}  Bh3 {[%clk 0:00:18]} 35. Kh2 {[%clk 0:01:36]}  Bc8 {[%clk 0:00:18]} 36. Qc3 {[%clk 0:01:36]}  Bf6 {[%clk 0:00:17]} 37. Qd3 {[%clk 0:01:35]}  Qd7 {[%clk 0:00:17]} 38. Qxd7 {[%clk 0:01:26]}  Bxd7 {[%clk 0:00:17]} 39. f3 {[%clk 0:01:23]}  Be7 {[%clk 0:00:17]} 40. Kg2 {[%clk 0:01:23]}  Bd8 {[%clk 0:00:17]} 41. f4 {[%clk 0:01:21]}  Bc7 {[%clk 0:00:16]} 42. Kf3 {[%clk 0:01:20]}  Bh3 {[%clk 0:00:15]} 43. f5 {[%clk 0:01:19]}  Kf6 {[%clk 0:00:14]} 44. fxg6 {[%clk 0:01:18]}  fxg6 {[%clk 0:00:14]} 45. g4 {[%clk 0:01:13]}  hxg4+ {[%clk 0:00:13]} 46. Nxg4+ {[%clk 0:01:14]}  Bxg4+ {[%clk 0:00:12]} 47. Kxg4 {[%clk 0:01:14]}  a5 {[%clk 0:00:11]} 48. h5 {[%clk 0:01:03]}  gxh5+ {[%clk 0:00:11]} 49. Kxh5 {[%clk 0:01:03]}  Bd8 {[%clk 0:00:12]} 50. Kh6 {[%clk 0:00:52]}  axb4 {[%clk 0:00:12]} 51. axb4 {[%clk 0:00:52]}  Be7 {[%clk 0:00:12]} 52. Kh7 {[%clk 0:00:34]}  Kg5 {[%clk 0:00:12]} 53. Be6 {[%clk 0:00:29]}  Kf4 {[%clk 0:00:12]} 54. Bd7 {[%clk 0:00:30]}  Kxe4 {[%clk 0:00:13]} 55. Bxc6+ {[%clk 0:00:31]}  Kd4 {[%clk 0:00:13]} 56. Bxb5 {[%clk 0:00:31]}  e4 {[%clk 0:00:12]} 57. Be2 {[%clk 0:00:30]}  Bxc5 {[%clk 0:00:12]} 58. bxc5 {[%clk 0:00:29]}  Kxc5 {[%clk 0:00:12]} 59. Kg6 {[%clk 0:00:29]}  Kd4 {[%clk 0:00:13]} 60. Kf5 {[%clk 0:00:29]}  Ke3 {[%clk 0:00:14]} 61. Ke5 {[%clk 0:00:28]}  Kxe2 {[%clk 0:00:14]} 62. Kxe4 {[%clk 0:00:28]} 1/2-1/2


[Site "https://www.chess.com"]

[Event "Titled Tuesday Blitz July 25 Early 2023"]
[White "Navalgund, Niranjan"]
[Black "Nugumanov, Bakhtiyar"]
[WhiteFideId "5030854"]
[BlackFideId "13701797"]
[WhiteElo "2440"]
[BlackElo "2244"]
[Result "1-0"]
[Round "3"]
[TimeControl "180+2"]
[Date "2023.07.25"]
[WhiteClock "0:02:07"]
[BlackClock "0:00:06"]
[Board "220"]

1. e4 {[%clk 0:03:00]}  e6 {[%clk 0:02:17]} 2. Qe2 {[%clk 0:02:57]}  d5 {[%clk 0:02:17]} 3. exd5 {[%clk 0:02:57]}  Qxd5 {[%clk 0:02:18]} 4. Nc3 {[%clk 0:02:57]}  Qd8 {[%clk 0:02:19]} 5. Nf3 {[%clk 0:02:58]}  Be7 {[%clk 0:02:19]} 6. g3 {[%clk 0:02:58]}  Nf6 {[%clk 0:02:20]} 7. Bg2 {[%clk 0:02:59]}  c5 {[%clk 0:02:20]} 8. Ne4 {[%clk 0:03:00]}  O-O {[%clk 0:02:20]} 9. O-O {[%clk 0:02:59]}  Nc6 {[%clk 0:02:20]} 10. c3 {[%clk 0:02:59]}  b6 {[%clk 0:02:14]} 11. Nxf6+ {[%clk 0:02:56]}  Bxf6 {[%clk 0:02:14]} 12. Ne5 {[%clk 0:02:56]}  Nxe5 {[%clk 0:02:08]} 13. Bxa8 {[%clk 0:02:56]}  c4 {[%clk 0:02:07]} 14. Bg2 {[%clk 0:02:55]}  Nd3 {[%clk 0:02:06]} 15. b3 {[%clk 0:02:56]}  b5 {[%clk 0:02:06]} 16. a4 {[%clk 0:02:55]}  a6 {[%clk 0:02:04]} 17. axb5 {[%clk 0:02:56]}  axb5 {[%clk 0:02:05]} 18. bxc4 {[%clk 0:02:56]}  bxc4 {[%clk 0:02:06]} 19. Ba3 {[%clk 0:02:57]}  Re8 {[%clk 0:02:05]} 20. Rab1 {[%clk 0:02:57]}  e5 {[%clk 0:02:02]} 21. Rb8 {[%clk 0:02:57]}  g6 {[%clk 0:01:56]} 22. Bc6 {[%clk 0:02:52]}  Qc7 {[%clk 0:01:44]} 23. Bxe8 {[%clk 0:02:52]}  Qxb8 {[%clk 0:01:44]} 24. Qf3 {[%clk 0:02:53]}  Bf5 {[%clk 0:01:39]} 25. Bc6 {[%clk 0:02:52]}  Qa7 {[%clk 0:01:34]} 26. Bd6 {[%clk 0:02:47]}  Qb6 {[%clk 0:01:26]} 27. Qg2 {[%clk 0:02:43]}  e4 {[%clk 0:01:19]} 28. Bxe4 {[%clk 0:02:41]}  Qxd6 {[%clk 0:01:11]} 29. Bxf5 {[%clk 0:02:41]}  gxf5 {[%clk 0:01:12]} 30. Qf3 {[%clk 0:02:41]}  Qc5 {[%clk 0:01:08]} 31. Rb1 {[%clk 0:02:40]}  Kg7 {[%clk 0:01:05]} 32. h4 {[%clk 0:02:36]}  Ne5 {[%clk 0:01:05]} 33. Qf4 {[%clk 0:02:36]}  Ng6 {[%clk 0:01:00]} 34. Qf3 {[%clk 0:02:36]}  Ne5 {[%clk 0:00:53]} 35. Qxf5 {[%clk 0:02:36]}  Qd6 {[%clk 0:00:47]} 36. Rb7 {[%clk 0:02:31]}  Qxd2 {[%clk 0:00:43]} 37. h5 {[%clk 0:02:31]}  Qd1+ {[%clk 0:00:41]} 38. Kh2 {[%clk 0:02:31]}  Qd5 {[%clk 0:00:39]} 39. h6+ {[%clk 0:02:30]}  Kf8 {[%clk 0:00:33]} 40. Qc8+ {[%clk 0:02:24]}  Bd8 {[%clk 0:00:27]} 41. Rb8 {[%clk 0:02:11]}  Nf3+ {[%clk 0:00:27]} 42. Kh3 {[%clk 0:02:11]}  Ng5+ {[%clk 0:00:27]} 43. Kh2 {[%clk 0:02:11]}  Nf3+ {[%clk 0:00:23]} 44. Kg2 {[%clk 0:02:10]}  Ng5+ {[%clk 0:00:14]} 45. Kg1 {[%clk 0:02:07]}  Nh3+ {[%clk 0:00:13]} 46. Kh2 {[%clk 0:02:07]}  Ke8 {[%clk 0:00:09]} 47. Qxd8+ {[%clk 0:02:05]}  Qxd8 {[%clk 0:00:08]} 48. Rxd8+ {[%clk 0:02:06]}  Kxd8 {[%clk 0:00:09]} 49. Kxh3 {[%clk 0:02:07]}  Ke7 {[%clk 0:00:09]} 50. Kg4 {[%clk 0:02:07]}  Kd6 {[%clk 0:00:09]} 51. Kf5 {[%clk 0:02:07]}  Kd5 {[%clk 0:00:09]} 52. f3 {[%clk 0:02:07]}  Kc5 {[%clk 0:00:06]} 53. Ke5 {[%clk 0:02:07]}  Kb5 {[%clk 0:00:06]} 54. Kd5 {[%clk 0:02:07]}  f6 {[%clk 0:00:06]} 55. g4 {[%clk 0:02:07]} 1-0


[Site "https://www.chess.com"]

[Event "Titled Tuesday Blitz July 25 Early 2023"]
[White "Vemparala, Nikash"]
[Black "Ai, Evan"]
[WhiteFideId "30960967"]
[BlackFideId "2094770"]
[WhiteElo "2240"]
[BlackElo "2438"]
[Result "0-1"]
[Round "3"]
[TimeControl "180+2"]
[Date "2023.07.25"]
[WhiteClock "0:00:44"]
[BlackClock "0:01:11"]
[Board "221"]

1. e4 {[%clk 0:02:59]}  c5 {[%clk 0:02:59]} 2. Nf3 {[%clk 0:02:59]}  d6 {[%clk 0:02:57]} 3. d4 {[%clk 0:02:59]}  cxd4 {[%clk 0:02:58]} 4. Nxd4 {[%clk 0:02:59]}  Nf6 {[%clk 0:02:59]} 5. Nc3 {[%clk 0:02:59]}  a6 {[%clk 0:02:59]} 6. f3 {[%clk 0:02:59]}  e5 {[%clk 0:02:59]} 7. Nb3 {[%clk 0:02:59]}  Be6 {[%clk 0:03:00]} 8. Be3 {[%clk 0:02:59]}  Be7 {[%clk 0:03:00]} 9. Qd2 {[%clk 0:02:59]}  O-O {[%clk 0:03:00]} 10. O-O-O {[%clk 0:02:58]}  Nbd7 {[%clk 0:03:00]} 11. Nd5 {[%clk 0:02:58]}  Nxd5 {[%clk 0:02:58]} 12. exd5 {[%clk 0:02:57]}  Bf5 {[%clk 0:02:57]} 13. g4 {[%clk 0:02:58]}  Bg6 {[%clk 0:02:56]} 14. h4 {[%clk 0:02:58]}  Bxh4 {[%clk 0:02:49]} 15. Bd3 {[%clk 0:02:55]}  f5 {[%clk 0:02:41]} 16. gxf5 {[%clk 0:02:36]}  Bxf5 {[%clk 0:02:42]} 17. Qh2 {[%clk 0:02:33]}  Bg5 {[%clk 0:02:37]} 18. f4 {[%clk 0:02:25]}  Bh6 {[%clk 0:02:27]} 19. Rdg1 {[%clk 0:02:14]}  Kh8 {[%clk 0:02:24]} 20. Bxf5 {[%clk 0:02:04]}  Rxf5 {[%clk 0:02:25]} 21. Rxg7 {[%clk 0:02:04]}  Rf6 {[%clk 0:01:43]} 22. Rxh7+ {[%clk 0:01:49]}  Kxh7 {[%clk 0:01:36]} 23. fxe5 {[%clk 0:01:49]}  Nxe5 {[%clk 0:01:32]} 24. Bxh6 {[%clk 0:01:48]}  Ng4 {[%clk 0:01:32]} 25. Qh3 {[%clk 0:01:05]}  Nxh6 {[%clk 0:01:29]} 26. Qd3+ {[%clk 0:01:04]}  Rg6 {[%clk 0:01:29]} 27. Nd4 {[%clk 0:01:02]}  Qg5+ {[%clk 0:01:27]} 28. Kb1 {[%clk 0:01:00]}  Qxd5 {[%clk 0:01:13]} 29. b3 {[%clk 0:00:44]}  Qxh1+ {[%clk 0:01:11]} 0-1


[Site "https://www.chess.com"]

[Event "Titled Tuesday Blitz July 25 Early 2023"]
[White "Reprintsev, Alexander"]
[Black "KSho99"]
[WhiteFideId "14100541"]
[WhiteElo "2436"]
[BlackElo "2216"]
[Result "1-0"]
[Round "3"]
[TimeControl "180+2"]
[Date "2023.07.25"]
[WhiteClock "0:01:16"]
[BlackClock "0:01:13"]
[Board "223"]

1. e4 {[%clk 0:02:27]}  e6 {[%clk 0:02:59]} 2. d4 {[%clk 0:02:26]}  d5 {[%clk 0:02:59]} 3. Nc3 {[%clk 0:02:26]}  Be7 {[%clk 0:02:59]} 4. g3 {[%clk 0:02:20]}  Nf6 {[%clk 0:02:40]} 5. Bg2 {[%clk 0:02:19]}  dxe4 {[%clk 0:02:26]} 6. Nxe4 {[%clk 0:02:18]}  Nxe4 {[%clk 0:02:26]} 7. Bxe4 {[%clk 0:02:18]}  Nd7 {[%clk 0:02:26]} 8. Bg2 {[%clk 0:02:10]}  c5 {[%clk 0:02:21]} 9. Ne2 {[%clk 0:02:09]}  O-O {[%clk 0:02:12]} 10. O-O {[%clk 0:02:08]}  Nf6 {[%clk 0:02:05]} 11. c3 {[%clk 0:02:05]}  Qb6 {[%clk 0:01:59]} 12. Qb3 {[%clk 0:02:02]}  Qa6 {[%clk 0:01:49]} 13. Re1 {[%clk 0:01:52]}  Rd8 {[%clk 0:01:40]} 14. Bg5 {[%clk 0:01:49]}  Rb8 {[%clk 0:01:30]} 15. Bxf6 {[%clk 0:01:44]}  Bxf6 {[%clk 0:01:29]} 16. dxc5 {[%clk 0:01:43]}  b6 {[%clk 0:01:20]} 17. c6 {[%clk 0:01:40]}  Be5 {[%clk 0:01:14]} 18. Nd4 {[%clk 0:01:18]}  Bc7 {[%clk 0:01:13]} 19. Nb5 {[%clk 0:01:16]} 1-0


[Site "https://www.chess.com"]

[Event "Titled Tuesday Blitz July 25 Early 2023"]
[White "Kuchava, Ana"]
[Black "Garagulya, Konstantin"]
[WhiteFideId "13605348"]
[BlackFideId "4128931"]
[WhiteElo "2214"]
[BlackElo "2433"]
[Result "0-1"]
[Round "3"]
[TimeControl "180+2"]
[Date "2023.07.25"]
[WhiteClock "0:00:05"]
[BlackClock "0:00:31"]
[Board "224"]

1. d4 {[%clk 0:03:00]}  d5 {[%clk 0:02:02]} 2. Nf3 {[%clk 0:02:59]}  Nf6 {[%clk 0:02:01]} 3. c4 {[%clk 0:02:59]}  dxc4 {[%clk 0:02:01]} 4. e3 {[%clk 0:02:58]}  e6 {[%clk 0:02:01]} 5. Bxc4 {[%clk 0:02:58]}  a6 {[%clk 0:02:01]} 6. a4 {[%clk 0:02:57]}  c5 {[%clk 0:02:00]} 7. O-O {[%clk 0:02:56]}  Nc6 {[%clk 0:01:59]} 8. Nc3 {[%clk 0:02:55]}  cxd4 {[%clk 0:01:58]} 9. exd4 {[%clk 0:02:54]}  Nb4 {[%clk 0:01:56]} 10. Bg5 {[%clk 0:02:51]}  Be7 {[%clk 0:01:56]} 11. Qe2 {[%clk 0:02:47]}  O-O {[%clk 0:01:55]} 12. Rad1 {[%clk 0:02:46]}  b6 {[%clk 0:01:55]} 13. Ne5 {[%clk 0:02:43]}  Bb7 {[%clk 0:01:55]} 14. Nxf7 {[%clk 0:01:57]}  Rxf7 {[%clk 0:01:54]} 15. Qxe6 {[%clk 0:01:54]}  Nfd5 {[%clk 0:01:53]} 16. Bxe7 {[%clk 0:00:41]}  Qxe7 {[%clk 0:01:41]} 17. Rfe1 {[%clk 0:00:25]}  Qxe6 {[%clk 0:01:20]} 18. Rxe6 {[%clk 0:00:26]}  Rd8 {[%clk 0:01:13]} 19. Rde1 {[%clk 0:00:18]}  Kf8 {[%clk 0:01:03]} 20. Nxd5 {[%clk 0:00:12]}  Bxd5 {[%clk 0:00:47]} 21. Rxb6 {[%clk 0:00:04]}  Bxc4 {[%clk 0:00:47]} 22. Rxb4 {[%clk 0:00:04]}  Bd3 {[%clk 0:00:42]} 23. b3 {[%clk 0:00:03]}  Rfd7 {[%clk 0:00:42]} 24. Rd1 {[%clk 0:00:02]}  Bc2 {[%clk 0:00:41]} 25. Rd2 {[%clk 0:00:02]}  Be4 {[%clk 0:00:40]} 26. f3 {[%clk 0:00:03]}  Bd5 {[%clk 0:00:39]} 27. Kf2 {[%clk 0:00:04]}  Rc7 {[%clk 0:00:37]} 28. Rb6 {[%clk 0:00:03]}  Rc6 {[%clk 0:00:36]} 29. Rb4 {[%clk 0:00:02]}  Rc3 {[%clk 0:00:33]} 30. a5 {[%clk 0:00:03]}  Rxb3 {[%clk 0:00:33]} 31. Rb6 {[%clk 0:00:03]}  Rxb6 {[%clk 0:00:32]} 32. axb6 {[%clk 0:00:04]}  Rb8 {[%clk 0:00:32]} 33. Rb2 {[%clk 0:00:04]}  Bc4 {[%clk 0:00:32]} 34. Ke3 {[%clk 0:00:04]}  Bb5 {[%clk 0:00:33]} 35. Rc2 {[%clk 0:00:05]}  Rxb6 {[%clk 0:00:33]} 36. Rc7 {[%clk 0:00:05]}  Rc6 {[%clk 0:00:32]} 37. Ke4 {[%clk 0:00:05]}  Rxc7 {[%clk 0:00:31]} 0-1


[Site "https://www.chess.com"]